Workbook

Sheet Επισκόπηση πάρτι
B3: Επισκόπηση πάρτι
B6: ΕΚΔΗΛΩΣΗ | D6: ΣΥΝΟΨΗ ΚΑΛΕΣΜΕΝΩΝ | H6: ="ΕΠΙΒΕΒΑΙΩΣΕΙΣ ΣΕ ΕΚΚΡΕΜΟΤΗΤΑ: "&OutstandingRSVPs -> ΕΠΙΒΕΒΑΙΩΣΕΙΣ ΣΕ ΕΚΚΡΕΜΟΤΗΤΑ: 2
B7: Τα 75α γενέθλια της γιαγιάς | D7: ΕΠΙΣΚΟΠΗΣΗ ΟΣΩΝ ΑΠΑΝΤΗΣΑΝ | F7: ΚΟΣΤΟΣ ΑΝΑ ΚΑΛΕΣΜΕΝΟ | H7: ΠΟΣΟ ΠΡΟΫΠΟΛΟΓΙΣΜΟΥ
D8: Καλεσμένοι που επιβεβαίωσαν | E8: Σύνολο επιβεβαιώσεων | F8: Φαγητό | G8: Άλλο | H8: Σύνολο
B9: ΗΜΕΡΟΜΗΝΙΑ | D9: Ενήλικες | E9: =SUMIF(GuestTable[ΘΑ ΠΑΡΕΥΡΕΘΕΙ;],"=Ναι",GuestTable[ΕΝΗΛΙΚΕΣ]) -> 26 | F9: =FoodTable[[#Totals],[ΚΟΣΤΟΣ ΑΝΑ ΕΝΗΛΙΚΑ]] -> 12.69 € | G9: =EssentialCostPerGuest -> 18.70 € | H9: =(AttendeeSummary[[#This Row],[Φαγητό]]+AttendeeSummary[[#This Row],[Άλλο]])*AdultTotal -> 816.03 €
B10: 2011-06-14 | D10: Παιδιά | E10: =SUMIF(GuestTable[ΘΑ ΠΑΡΕΥΡΕΘΕΙ;],"=Ναι",GuestTable[ΠΑΙΔΙΑ]) -> 20 | F10: =FoodTable[[#Totals],[ΚΟΣΤΟΣ ΑΝΑ ΠΑΙΔΙ]] -> 7.25 € | G10: =EssentialCostPerGuest -> 18.70 € | H10: =(AttendeeSummary[[#This Row],[Φαγητό]]+AttendeeSummary[[#This Row],[Άλλο]])*ChildrenTotal -> 518.97 €
D11: Σύνολο | E11: =SUBTOTAL(109,AttendeeSummary[Σύνολο επιβεβαιώσεων]) -> 46 | F11: ="Avg. "&TEXT(SUBTOTAL(101,AttendeeSummary[Φαγητό]),"#,##0.00 €") -> Avg. 9,97149 € | G11: ="Avg. "&TEXT(SUBTOTAL(101,AttendeeSummary[Άλλο]),"#,##0.00 €") -> Avg. 18,69565 € | H11: =SUBTOTAL(109,AttendeeSummary[Σύνολο]) -> 1,335.00 €
B12: ΩΡΑ
B13: 2 μ.μ. έως 4 μ.μ.
B15: ΤΟΠΟΘΕΣΙΑ | D15: ΣΥΝΟΨΗ ΠΡΟΫΠΟΛΟΓΙΣΜΟΥ
B16: Το σπίτι της θείας Σοφίας | D16: ΣΤΟΙΧΕΙΟ | E16: ΠΛΗΘΟΣ | F16: ΠΟΣΟ ΠΡΟΫΠΟΛΟΓΙΣΜΟΥ | G16: ΣΥΝΟΛΙΚΟ ΚΟΣΤΟΣ | H16: ΔΙΑΦΟΡΑ
D17: Φαγητό και αναψυκτικά | E17: =COUNTA(FoodTable[ΣΤΟΙΧΕΙΟ ΦΑΓΗΤΟΥ Ή ΑΝΑΨΥΚΤΙΚΟΥ]) -> 18 | F17: 500.00 € | G17: =FoodTable[[#Totals],[ΣΥΝΟΛΙΚΟ ΚΟΣΤΟΣ]] -> 475.00 € | H17: =BudgetOverview[[#This Row],[ΠΟΣΟ ΠΡΟΫΠΟΛΟΓΙΣΜΟΥ]]-BudgetOverview[[#This Row],[ΣΥΝΟΛΙΚΟ ΚΟΣΤΟΣ]] -> 25.00 €
D18: =Table1Header -> Εξοπλισμός και προμήθειες | E18: =COUNTA(Table1Budget[Εξοπλισμός και προμήθειες]) -> 7 | F18: 400.00 € | G18: =Table1Budget[[#Totals],[Κόστος]] -> 400.00 € | H18: =BudgetOverview[[#This Row],[ΠΟΣΟ ΠΡΟΫΠΟΛΟΓΙΣΜΟΥ]]-BudgetOverview[[#This Row],[ΣΥΝΟΛΙΚΟ ΚΟΣΤΟΣ]] -> 0.00 €
D19: =Table2Header -> Διακοσμητικά | E19: =COUNTA(Table2Budget[Διακοσμητικά]) -> 4 | F19: 150.00 € | G19: =Table2Budget[[#Totals],[Κόστος]] -> 175.00 € | H19: =BudgetOverview[[#This Row],[ΠΟΣΟ ΠΡΟΫΠΟΛΟΓΙΣΜΟΥ]]-BudgetOverview[[#This Row],[ΣΥΝΟΛΙΚΟ ΚΟΣΤΟΣ]] -> 25.00 €
D20: =Table3Header -> Άλλο | E20: =COUNTA(Table3Budget[Άλλο]) -> 4 | F20: 300.00 € | G20: =Table3Budget[[#Totals],[Κόστος]] -> 285.00 € | H20: =BudgetOverview[[#This Row],[ΠΟΣΟ ΠΡΟΫΠΟΛΟΓΙΣΜΟΥ]]-BudgetOverview[[#This Row],[ΣΥΝΟΛΙΚΟ ΚΟΣΤΟΣ]] -> 15.00 €
D21: Σύνολο | E21: =SUBTOTAL(109,BudgetOverview[ΠΛΗΘΟΣ]) -> 33 | F21: =SUBTOTAL(109,BudgetOverview[ΠΟΣΟ ΠΡΟΫΠΟΛΟΓΙΣΜΟΥ]) -> 1,350.00 € | G21: =SUBTOTAL(109,BudgetOverview[ΣΥΝΟΛΙΚΟ ΚΟΣΤΟΣ]) -> 1,335.00 € | H21: =BudgetOverview[[#Totals],[ΠΟΣΟ ΠΡΟΫΠΟΛΟΓΙΣΜΟΥ]]-BudgetOverview[[#Totals],[ΣΥΝΟΛΙΚΟ ΚΟΣΤΟΣ]] -> 15.00 €

Sheet Λίστα καλεσμένων
B3: Λίστα καλεσμένων
B7: ΟΝΟΜΑ | C7: ΔΙΕΥΘΥΝΣΗ | D7: ΠΟΛΗ | E7: ΝΟΜΟΣ | F7: ΤΚ | G7: ΤΗΛΕΦΩΝΟ | H7: ΗΛ. ΤΑΧΥΔΡΟΜΕΙΟ | I7: ΘΑ ΠΑΡΕΥΡΕΘΕΙ; | J7: ΠΑΙΔΙΑ | K7: ΕΝΗΛΙΚΕΣ | L7: ΣΥΝΟΛΟ
B8: Οικογένεια 1 | C8: Διεύθυνση 1 | D8: Πόλη 1 | E8: Νομός 1 | F8: ΤΚ 1 | G8: Τηλέφωνο 1 | H8: Email1 | I8: Όχι | J8: 2 | K8: 2 | L8: =SUM(GuestTable[[#This Row],[ΠΑΙΔΙΑ]:[ΕΝΗΛΙΚΕΣ]]) -> 4
B9: Οικογένεια 2 | C9: Διεύθυνση 2 | D9: Πόλη 2 | E9: Νομός 2 | F9: ΤΚ 2 | G9: Τηλέφωνο 2 | H9: Email2 | I9: Ναι | J9: 1 | K9: 1 | L9: =SUM(GuestTable[[#This Row],[ΠΑΙΔΙΑ]:[ΕΝΗΛΙΚΕΣ]]) -> 2
B10: Οικογένεια 3 | C10: Διεύθυνση 3 | D10: Πόλη 3 | E10: Νομός 3 | F10: ΤΚ 3 | G10: Τηλέφωνο 3 | H10: Email3 | I10: Ναι | J10: 3 | K10: 3 | L10: =SUM(GuestTable[[#This Row],[ΠΑΙΔΙΑ]:[ΕΝΗΛΙΚΕΣ]]) -> 6
B11: Οικογένεια 4 | C11: Διεύθυνση 4 | D11: Πόλη 4 | E11: Νομός 4 | F11: ΤΚ 4 | G11: Τηλέφωνο 4 | H11: Email4 | K11: 2 | L11: =SUM(GuestTable[[#This Row],[ΠΑΙΔΙΑ]:[ΕΝΗΛΙΚΕΣ]]) -> 2
B12: Οικογένεια 5 | C12: Διεύθυνση 5 | D12: Πόλη 5 | E12: Νομός 5 | F12: ΤΚ 5 | G12: Τηλέφωνο 5 | H12: Email5 | I12: Ναι | J12: 4 | K12: 3 | L12: =SUM(GuestTable[[#This Row],[ΠΑΙΔΙΑ]:[ΕΝΗΛΙΚΕΣ]]) -> 7
B13: Οικογένεια 6 | C13: Διεύθυνση 6 | D13: Πόλη 6 | E13: Νομός 6 | F13: ΤΚ 6 | G13: Τηλέφωνο 6 | H13: Email6 | I13: Ναι | J13: 2 | K13: 2 | L13: =SUM(GuestTable[[#This Row],[ΠΑΙΔΙΑ]:[ΕΝΗΛΙΚΕΣ]]) -> 4
B14: Οικογένεια 7 | C14: Διεύθυνση 7 | D14: Πόλη 7 | E14: Νομός 7 | F14: ΤΚ 7 | G14: Τηλέφωνο 7 | H14: Email7 | I14: Ναι | J14: 1 | K14: 4 | L14: =SUM(GuestTable[[#This Row],[ΠΑΙΔΙΑ]:[ΕΝΗΛΙΚΕΣ]]) -> 5
B15: Οικογένεια 8 | C15: Διεύθυνση 8 | D15: Πόλη 8 | E15: Νομός 8 | F15: ΤΚ 8 | G15: Τηλέφωνο 8 | H15: Email8 | I15: Όχι | J15: 5 | K15: 3 | L15: =SUM(GuestTable[[#This Row],[ΠΑΙΔΙΑ]:[ΕΝΗΛΙΚΕΣ]]) -> 8
B16: Οικογένεια 9 | C16: Διεύθυνση 9 | D16: Πόλη 9 | E16: Νομός 9 | F16: ΤΚ 9 | G16: Τηλέφωνο 9 | H16: Email9 | I16: Ναι | J16: 3 | K16: 2 | L16: =SUM(GuestTable[[#This Row],[ΠΑΙΔΙΑ]:[ΕΝΗΛΙΚΕΣ]]) -> 5
B17: Οικογένεια 10 | C17: Διεύθυνση 10 | D17: Πόλη 10 | E17: Νομός 10 | F17: ΤΚ 10 | G17: Τηλέφωνο 10 | H17: Email10 | I17: Ναι | K17: 4 | L17: =SUM(GuestTable[[#This Row],[ΠΑΙΔΙΑ]:[ΕΝΗΛΙΚΕΣ]]) -> 4
B18: Οικογένεια 11 | C18: Διεύθυνση 11 | D18: Πόλη 11 | E18: Νομός 11 | F18: ΤΚ 11 | G18: Τηλέφωνο 11 | H18: Email11 | I18: Ναι | J18: 3 | K18: 5 | L18: =SUM(GuestTable[[#This Row],[ΠΑΙΔΙΑ]:[ΕΝΗΛΙΚΕΣ]]) -> 8
B19: Οικογένεια 12 | C19: Διεύθυνση 12 | D19: Πόλη 12 | E19: Νομός 12 | F19: ΤΚ 12 | G19: Τηλέφωνο 12 | H19: Email12 | I19: Όχι | J19: 2 | K19: 3 | L19: =SUM(GuestTable[[#This Row],[ΠΑΙΔΙΑ]:[ΕΝΗΛΙΚΕΣ]]) -> 5
B20: Οικογένεια 13 | C20: Διεύθυνση 13 | D20: Πόλη 13 | E20: Νομός 13 | F20: ΤΚ 13 | G20: Τηλέφωνο 13 | H20: Email13 | I20: Ναι | J20: 3 | K20: 2 | L20: =SUM(GuestTable[[#This Row],[ΠΑΙΔΙΑ]:[ΕΝΗΛΙΚΕΣ]]) -> 5
B21: Οικογένεια 14 | C21: Διεύθυνση 14 | D21: Πόλη 14 | E21: Νομός 14 | F21: ΤΚ 14 | G21: Τηλέφωνο 14 | H21: Email14 | I21: Όχι | K21: 1 | L21: =SUM(GuestTable[[#This Row],[ΠΑΙΔΙΑ]:[ΕΝΗΛΙΚΕΣ]]) -> 1
B22: Οικογένεια 15 | C22: Διεύθυνση 15 | D22: Πόλη 15 | E22: Νομός 15 | F22: ΤΚ 15 | G22: Τηλέφωνο 15 | H22: Email15 | K22: 2 | L22: =SUM(GuestTable[[#This Row],[ΠΑΙΔΙΑ]:[ΕΝΗΛΙΚΕΣ]]) -> 2

Sheet Φαγητό και αναψυκτικά
B3: Φαγητό και αναψυκτικά
B5: Πληκτρολογήστε το κόστος και τις εκτιμώμενες μερίδες για να υπολογίσετε αυτόματα τα συνολικά τεμάχια και το κόστος ανά μερίδα με βάση την συνολική προσέλευση
B6: ΣΤΟΙΧΕΙΟ ΦΑΓΗΤΟΥ Ή ΑΝΑΨΥΚΤΙΚΟΥ | C6: ΣΥΝΟΛΙΚΟ ΚΟΣΤΟΣ | D6: ΜΕΡΙΔΑ ΑΝΑ ΠΑΙΔΙ | E6: ΜΕΡΙΔΑ ΑΝΑ ΕΝΗΛΙΚΑ | F6: ΣΥΝΟΛΙΚΕΣ ΜΕΡΙΔΕΣ | G6: ΚΟΣΤΟΣ ΑΝΑ ΜΕΡΙΔΑ | H6: ΚΟΣΤΟΣ ΑΝΑ ΠΑΙΔΙ | I6: ΚΟΣΤΟΣ ΑΝΑ ΕΝΗΛΙΚΑ | J6: ΣΗΜΕΙΩΣΕΙΣ
B7: Αναψυκτικά | C7: 15.00 € | D7: 0.5 | E7: 2 | F7: =(FoodTable[[#This Row],[ΜΕΡΙΔΑ ΑΝΑ ΠΑΙΔΙ]]*ChildrenTotal)+(FoodTable[[#This Row],[ΜΕΡΙΔΑ ΑΝΑ ΕΝΗΛΙΚΑ]]*AdultTotal) -> 62 | G7: =IFERROR(FoodTable[[#This Row],[ΣΥΝΟΛΙΚΟ ΚΟΣΤΟΣ]]/FoodTable[[#This Row],[ΣΥΝΟΛΙΚΕΣ ΜΕΡΙΔΕΣ]],"") -> 0.24 € | H7: =IFERROR(FoodTable[[#This Row],[ΚΟΣΤΟΣ ΑΝΑ ΜΕΡΙΔΑ]]*FoodTable[[#This Row],[ΜΕΡΙΔΑ ΑΝΑ ΠΑΙΔΙ]],"") -> 0.12 € | I7: =IFERROR(FoodTable[[#This Row],[ΚΟΣΤΟΣ ΑΝΑ ΜΕΡΙΔΑ]]*FoodTable[[#This Row],[ΜΕΡΙΔΑ ΑΝΑ ΕΝΗΛΙΚΑ]],"") -> 0.48 € | J7: 2 φιάλες του λίτρου
B8: Κουτιά χυμών | C8: 15.00 € | D8: 2 | E8: 0 | F8: =(FoodTable[[#This Row],[ΜΕΡΙΔΑ ΑΝΑ ΠΑΙΔΙ]]*ChildrenTotal)+(FoodTable[[#This Row],[ΜΕΡΙΔΑ ΑΝΑ ΕΝΗΛΙΚΑ]]*AdultTotal) -> 40 | G8: =IFERROR(FoodTable[[#This Row],[ΣΥΝΟΛΙΚΟ ΚΟΣΤΟΣ]]/FoodTable[[#This Row],[ΣΥΝΟΛΙΚΕΣ ΜΕΡΙΔΕΣ]],"") -> 0.38 € | H8: =IFERROR(FoodTable[[#This Row],[ΚΟΣΤΟΣ ΑΝΑ ΜΕΡΙΔΑ]]*FoodTable[[#This Row],[ΜΕΡΙΔΑ ΑΝΑ ΠΑΙΔΙ]],"") -> 0.75 € | I8: =IFERROR(FoodTable[[#This Row],[ΚΟΣΤΟΣ ΑΝΑ ΜΕΡΙΔΑ]]*FoodTable[[#This Row],[ΜΕΡΙΔΑ ΑΝΑ ΕΝΗΛΙΚΑ]],"") -> 0.00 € | J8: Μήλο και σταφύλι
B9: Κρασί | C9: 50.00 € | D9: 0 | E9: 2 | F9: =(FoodTable[[#This Row],[ΜΕΡΙΔΑ ΑΝΑ ΠΑΙΔΙ]]*ChildrenTotal)+(FoodTable[[#This Row],[ΜΕΡΙΔΑ ΑΝΑ ΕΝΗΛΙΚΑ]]*AdultTotal) -> 52 | G9: =IFERROR(FoodTable[[#This Row],[ΣΥΝΟΛΙΚΟ ΚΟΣΤΟΣ]]/FoodTable[[#This Row],[ΣΥΝΟΛΙΚΕΣ ΜΕΡΙΔΕΣ]],"") -> 0.96 € | H9: =IFERROR(FoodTable[[#This Row],[ΚΟΣΤΟΣ ΑΝΑ ΜΕΡΙΔΑ]]*FoodTable[[#This Row],[ΜΕΡΙΔΑ ΑΝΑ ΠΑΙΔΙ]],"") -> 0.00 € | I9: =IFERROR(FoodTable[[#This Row],[ΚΟΣΤΟΣ ΑΝΑ ΜΕΡΙΔΑ]]*FoodTable[[#This Row],[ΜΕΡΙΔΑ ΑΝΑ ΕΝΗΛΙΚΑ]],"") -> 1.92 €
B10: Τούρτα | C10: 75.00 € | D10: 1 | E10: 1 | F10: =(FoodTable[[#This Row],[ΜΕΡΙΔΑ ΑΝΑ ΠΑΙΔΙ]]*ChildrenTotal)+(FoodTable[[#This Row],[ΜΕΡΙΔΑ ΑΝΑ ΕΝΗΛΙΚΑ]]*AdultTotal) -> 46 | G10: =IFERROR(FoodTable[[#This Row],[ΣΥΝΟΛΙΚΟ ΚΟΣΤΟΣ]]/FoodTable[[#This Row],[ΣΥΝΟΛΙΚΕΣ ΜΕΡΙΔΕΣ]],"") -> 1.63 € | H10: =IFERROR(FoodTable[[#This Row],[ΚΟΣΤΟΣ ΑΝΑ ΜΕΡΙΔΑ]]*FoodTable[[#This Row],[ΜΕΡΙΔΑ ΑΝΑ ΠΑΙΔΙ]],"") -> 1.63 € | I10: =IFERROR(FoodTable[[#This Row],[ΚΟΣΤΟΣ ΑΝΑ ΜΕΡΙΔΑ]]*FoodTable[[#This Row],[ΜΕΡΙΔΑ ΑΝΑ ΕΝΗΛΙΚΑ]],"") -> 1.63 € | J10: Παραγγελία από το τοπικό ζαχαροπλαστείο
B11: Παγωτό | C11: 20.00 € | D11: 1 | E11: 1.5 | F11: =(FoodTable[[#This Row],[ΜΕΡΙΔΑ ΑΝΑ ΠΑΙΔΙ]]*ChildrenTotal)+(FoodTable[[#This Row],[ΜΕΡΙΔΑ ΑΝΑ ΕΝΗΛΙΚΑ]]*AdultTotal) -> 59 | G11: =IFERROR(FoodTable[[#This Row],[ΣΥΝΟΛΙΚΟ ΚΟΣΤΟΣ]]/FoodTable[[#This Row],[ΣΥΝΟΛΙΚΕΣ ΜΕΡΙΔΕΣ]],"") -> 0.34 € | H11: =IFERROR(FoodTable[[#This Row],[ΚΟΣΤΟΣ ΑΝΑ ΜΕΡΙΔΑ]]*FoodTable[[#This Row],[ΜΕΡΙΔΑ ΑΝΑ ΠΑΙΔΙ]],"") -> 0.34 € | I11: =IFERROR(FoodTable[[#This Row],[ΚΟΣΤΟΣ ΑΝΑ ΜΕΡΙΔΑ]]*FoodTable[[#This Row],[ΜΕΡΙΔΑ ΑΝΑ ΕΝΗΛΙΚΑ]],"") -> 0.51 €
B12: Κυπελάκια κρέμα | C12: 15.00 € | D12: 1 | E12: 0 | F12: =(FoodTable[[#This Row],[ΜΕΡΙΔΑ ΑΝΑ ΠΑΙΔΙ]]*ChildrenTotal)+(FoodTable[[#This Row],[ΜΕΡΙΔΑ ΑΝΑ ΕΝΗΛΙΚΑ]]*AdultTotal) -> 20 | G12: =IFERROR(FoodTable[[#This Row],[ΣΥΝΟΛΙΚΟ ΚΟΣΤΟΣ]]/FoodTable[[#This Row],[ΣΥΝΟΛΙΚΕΣ ΜΕΡΙΔΕΣ]],"") -> 0.75 € | H12: =IFERROR(FoodTable[[#This Row],[ΚΟΣΤΟΣ ΑΝΑ ΜΕΡΙΔΑ]]*FoodTable[[#This Row],[ΜΕΡΙΔΑ ΑΝΑ ΠΑΙΔΙ]],"") -> 0.75 € | I12: =IFERROR(FoodTable[[#This Row],[ΚΟΣΤΟΣ ΑΝΑ ΜΕΡΙΔΑ]]*FoodTable[[#This Row],[ΜΕΡΙΔΑ ΑΝΑ ΕΝΗΛΙΚΑ]],"") -> 0.00 € | J12: Αγορά συσκευασμένων: βανίλια και σοκολάτα
B13: Γεμιστά μανιτάρια | C13: 32.00 € | D13: 1 | E13: 2 | F13: =(FoodTable[[#This Row],[ΜΕΡΙΔΑ ΑΝΑ ΠΑΙΔΙ]]*ChildrenTotal)+(FoodTable[[#This Row],[ΜΕΡΙΔΑ ΑΝΑ ΕΝΗΛΙΚΑ]]*AdultTotal) -> 72 | G13: =IFERROR(FoodTable[[#This Row],[ΣΥΝΟΛΙΚΟ ΚΟΣΤΟΣ]]/FoodTable[[#This Row],[ΣΥΝΟΛΙΚΕΣ ΜΕΡΙΔΕΣ]],"") -> 0.44 € | H13: =IFERROR(FoodTable[[#This Row],[ΚΟΣΤΟΣ ΑΝΑ ΜΕΡΙΔΑ]]*FoodTable[[#This Row],[ΜΕΡΙΔΑ ΑΝΑ ΠΑΙΔΙ]],"") -> 0.44 € | I13: =IFERROR(FoodTable[[#This Row],[ΚΟΣΤΟΣ ΑΝΑ ΜΕΡΙΔΑ]]*FoodTable[[#This Row],[ΜΕΡΙΔΑ ΑΝΑ ΕΝΗΛΙΚΑ]],"") -> 0.89 € | J13: Μανιτάρια γεμιστά με τυρί και λουκάνικο
B14: Πίτσα | C14: 22.00 € | D14: 0 | E14: 3 | F14: =(FoodTable[[#This Row],[ΜΕΡΙΔΑ ΑΝΑ ΠΑΙΔΙ]]*ChildrenTotal)+(FoodTable[[#This Row],[ΜΕΡΙΔΑ ΑΝΑ ΕΝΗΛΙΚΑ]]*AdultTotal) -> 78 | G14: =IFERROR(FoodTable[[#This Row],[ΣΥΝΟΛΙΚΟ ΚΟΣΤΟΣ]]/FoodTable[[#This Row],[ΣΥΝΟΛΙΚΕΣ ΜΕΡΙΔΕΣ]],"") -> 0.28 € | H14: =IFERROR(FoodTable[[#This Row],[ΚΟΣΤΟΣ ΑΝΑ ΜΕΡΙΔΑ]]*FoodTable[[#This Row],[ΜΕΡΙΔΑ ΑΝΑ ΠΑΙΔΙ]],"") -> 0.00 € | I14: =IFERROR(FoodTable[[#This Row],[ΚΟΣΤΟΣ ΑΝΑ ΜΕΡΙΔΑ]]*FoodTable[[#This Row],[ΜΕΡΙΔΑ ΑΝΑ ΕΝΗΛΙΚΑ]],"") -> 0.85 € | J14: Ντομάτα και βασιλικός
B15: Καπνιστός σολομός | C15: 50.00 € | D15: 1 | E15: 2 | F15: =(FoodTable[[#This Row],[ΜΕΡΙΔΑ ΑΝΑ ΠΑΙΔΙ]]*ChildrenTotal)+(FoodTable[[#This Row],[ΜΕΡΙΔΑ ΑΝΑ ΕΝΗΛΙΚΑ]]*AdultTotal) -> 72 | G15: =IFERROR(FoodTable[[#This Row],[ΣΥΝΟΛΙΚΟ ΚΟΣΤΟΣ]]/FoodTable[[#This Row],[ΣΥΝΟΛΙΚΕΣ ΜΕΡΙΔΕΣ]],"") -> 0.69 € | H15: =IFERROR(FoodTable[[#This Row],[ΚΟΣΤΟΣ ΑΝΑ ΜΕΡΙΔΑ]]*FoodTable[[#This Row],[ΜΕΡΙΔΑ ΑΝΑ ΠΑΙΔΙ]],"") -> 0.69 € | I15: =IFERROR(FoodTable[[#This Row],[ΚΟΣΤΟΣ ΑΝΑ ΜΕΡΙΔΑ]]*FoodTable[[#This Row],[ΜΕΡΙΔΑ ΑΝΑ ΕΝΗΛΙΚΑ]],"") -> 1.39 €
B16: Κουλουράκια | C16: 20.00 € | D16: 1 | E16: 2 | F16: =(FoodTable[[#This Row],[ΜΕΡΙΔΑ ΑΝΑ ΠΑΙΔΙ]]*ChildrenTotal)+(FoodTable[[#This Row],[ΜΕΡΙΔΑ ΑΝΑ ΕΝΗΛΙΚΑ]]*AdultTotal) -> 72 | G16: =IFERROR(FoodTable[[#This Row],[ΣΥΝΟΛΙΚΟ ΚΟΣΤΟΣ]]/FoodTable[[#This Row],[ΣΥΝΟΛΙΚΕΣ ΜΕΡΙΔΕΣ]],"") -> 0.28 € | H16: =IFERROR(FoodTable[[#This Row],[ΚΟΣΤΟΣ ΑΝΑ ΜΕΡΙΔΑ]]*FoodTable[[#This Row],[ΜΕΡΙΔΑ ΑΝΑ ΠΑΙΔΙ]],"") -> 0.28 € | I16: =IFERROR(FoodTable[[#This Row],[ΚΟΣΤΟΣ ΑΝΑ ΜΕΡΙΔΑ]]*FoodTable[[#This Row],[ΜΕΡΙΔΑ ΑΝΑ ΕΝΗΛΙΚΑ]],"") -> 0.56 € | J16: 4 πακέτα - διάφορα
B17: Τυρί κρέμα | C17: 10.00 € | D17: 1 | E17: 2 | F17: =(FoodTable[[#This Row],[ΜΕΡΙΔΑ ΑΝΑ ΠΑΙΔΙ]]*ChildrenTotal)+(FoodTable[[#This Row],[ΜΕΡΙΔΑ ΑΝΑ ΕΝΗΛΙΚΑ]]*AdultTotal) -> 72 | G17: =IFERROR(FoodTable[[#This Row],[ΣΥΝΟΛΙΚΟ ΚΟΣΤΟΣ]]/FoodTable[[#This Row],[ΣΥΝΟΛΙΚΕΣ ΜΕΡΙΔΕΣ]],"") -> 0.14 € | H17: =IFERROR(FoodTable[[#This Row],[ΚΟΣΤΟΣ ΑΝΑ ΜΕΡΙΔΑ]]*FoodTable[[#This Row],[ΜΕΡΙΔΑ ΑΝΑ ΠΑΙΔΙ]],"") -> 0.14 € | I17: =IFERROR(FoodTable[[#This Row],[ΚΟΣΤΟΣ ΑΝΑ ΜΕΡΙΔΑ]]*FoodTable[[#This Row],[ΜΕΡΙΔΑ ΑΝΑ ΕΝΗΛΙΚΑ]],"") -> 0.28 € | J17: 2 μεγάλα δοχεία
B18: Κάπαρη | C18: 12.00 € | D18: 1 | E18: 2 | F18: =(FoodTable[[#This Row],[ΜΕΡΙΔΑ ΑΝΑ ΠΑΙΔΙ]]*ChildrenTotal)+(FoodTable[[#This Row],[ΜΕΡΙΔΑ ΑΝΑ ΕΝΗΛΙΚΑ]]*AdultTotal) -> 72 | G18: =IFERROR(FoodTable[[#This Row],[ΣΥΝΟΛΙΚΟ ΚΟΣΤΟΣ]]/FoodTable[[#This Row],[ΣΥΝΟΛΙΚΕΣ ΜΕΡΙΔΕΣ]],"") -> 0.17 € | H18: =IFERROR(FoodTable[[#This Row],[ΚΟΣΤΟΣ ΑΝΑ ΜΕΡΙΔΑ]]*FoodTable[[#This Row],[ΜΕΡΙΔΑ ΑΝΑ ΠΑΙΔΙ]],"") -> 0.17 € | I18: =IFERROR(FoodTable[[#This Row],[ΚΟΣΤΟΣ ΑΝΑ ΜΕΡΙΔΑ]]*FoodTable[[#This Row],[ΜΕΡΙΔΑ ΑΝΑ ΕΝΗΛΙΚΑ]],"") -> 0.33 € | J18: 3 βαζάκια
B19: Φτερούγες κοτόπουλου | C19: 45.00 € | D19: 2 | E19: 4 | F19: =(FoodTable[[#This Row],[ΜΕΡΙΔΑ ΑΝΑ ΠΑΙΔΙ]]*ChildrenTotal)+(FoodTable[[#This Row],[ΜΕΡΙΔΑ ΑΝΑ ΕΝΗΛΙΚΑ]]*AdultTotal) -> 144 | G19: =IFERROR(FoodTable[[#This Row],[ΣΥΝΟΛΙΚΟ ΚΟΣΤΟΣ]]/FoodTable[[#This Row],[ΣΥΝΟΛΙΚΕΣ ΜΕΡΙΔΕΣ]],"") -> 0.31 € | H19: =IFERROR(FoodTable[[#This Row],[ΚΟΣΤΟΣ ΑΝΑ ΜΕΡΙΔΑ]]*FoodTable[[#This Row],[ΜΕΡΙΔΑ ΑΝΑ ΠΑΙΔΙ]],"") -> 0.63 € | I19: =IFERROR(FoodTable[[#This Row],[ΚΟΣΤΟΣ ΑΝΑ ΜΕΡΙΔΑ]]*FoodTable[[#This Row],[ΜΕΡΙΔΑ ΑΝΑ ΕΝΗΛΙΚΑ]],"") -> 1.25 € | J19: Αγορά από το τοπικό ψητοπωλείο
B20: Χούμους | C20: 10.00 € | D20: 4 | E20: 6 | F20: =(FoodTable[[#This Row],[ΜΕΡΙΔΑ ΑΝΑ ΠΑΙΔΙ]]*ChildrenTotal)+(FoodTable[[#This Row],[ΜΕΡΙΔΑ ΑΝΑ ΕΝΗΛΙΚΑ]]*AdultTotal) -> 236 | G20: =IFERROR(FoodTable[[#This Row],[ΣΥΝΟΛΙΚΟ ΚΟΣΤΟΣ]]/FoodTable[[#This Row],[ΣΥΝΟΛΙΚΕΣ ΜΕΡΙΔΕΣ]],"") -> 0.04 € | H20: =IFERROR(FoodTable[[#This Row],[ΚΟΣΤΟΣ ΑΝΑ ΜΕΡΙΔΑ]]*FoodTable[[#This Row],[ΜΕΡΙΔΑ ΑΝΑ ΠΑΙΔΙ]],"") -> 0.17 € | I20: =IFERROR(FoodTable[[#This Row],[ΚΟΣΤΟΣ ΑΝΑ ΜΕΡΙΔΑ]]*FoodTable[[#This Row],[ΜΕΡΙΔΑ ΑΝΑ ΕΝΗΛΙΚΑ]],"") -> 0.25 € | J20: Παρασκευή από την προηγούμενη
B21: Πατατάκια με παρμεζάνα | C21: 14.00 € | D21: 4 | E21: 6 | F21: =(FoodTable[[#This Row],[ΜΕΡΙΔΑ ΑΝΑ ΠΑΙΔΙ]]*ChildrenTotal)+(FoodTable[[#This Row],[ΜΕΡΙΔΑ ΑΝΑ ΕΝΗΛΙΚΑ]]*AdultTotal) -> 236 | G21: =IFERROR(FoodTable[[#This Row],[ΣΥΝΟΛΙΚΟ ΚΟΣΤΟΣ]]/FoodTable[[#This Row],[ΣΥΝΟΛΙΚΕΣ ΜΕΡΙΔΕΣ]],"") -> 0.06 € | H21: =IFERROR(FoodTable[[#This Row],[ΚΟΣΤΟΣ ΑΝΑ ΜΕΡΙΔΑ]]*FoodTable[[#This Row],[ΜΕΡΙΔΑ ΑΝΑ ΠΑΙΔΙ]],"") -> 0.24 € | I21: =IFERROR(FoodTable[[#This Row],[ΚΟΣΤΟΣ ΑΝΑ ΜΕΡΙΔΑ]]*FoodTable[[#This Row],[ΜΕΡΙΔΑ ΑΝΑ ΕΝΗΛΙΚΑ]],"") -> 0.36 € | J21: Παρασκευή από την προηγούμενη
B22: Διάφορα λαχανικά | C22: 30.00 € | D22: 4 | E22: 10 | F22: =(FoodTable[[#This Row],[ΜΕΡΙΔΑ ΑΝΑ ΠΑΙΔΙ]]*ChildrenTotal)+(FoodTable[[#This Row],[ΜΕΡΙΔΑ ΑΝΑ ΕΝΗΛΙΚΑ]]*AdultTotal) -> 340 | G22: =IFERROR(FoodTable[[#This Row],[ΣΥΝΟΛΙΚΟ ΚΟΣΤΟΣ]]/FoodTable[[#This Row],[ΣΥΝΟΛΙΚΕΣ ΜΕΡΙΔΕΣ]],"") -> 0.09 € | H22: =IFERROR(FoodTable[[#This Row],[ΚΟΣΤΟΣ ΑΝΑ ΜΕΡΙΔΑ]]*FoodTable[[#This Row],[ΜΕΡΙΔΑ ΑΝΑ ΠΑΙΔΙ]],"") -> 0.35 € | I22: =IFERROR(FoodTable[[#This Row],[ΚΟΣΤΟΣ ΑΝΑ ΜΕΡΙΔΑ]]*FoodTable[[#This Row],[ΜΕΡΙΔΑ ΑΝΑ ΕΝΗΛΙΚΑ]],"") -> 0.88 € | J22: Καρότα, σέλινο, μπρόκολο, κουνουπίδι, κόκκινες και πράσινες πιπεριές
B23: Τυροκροκέτες | C23: 15.00 € | D23: 5 | E23: 10 | F23: =(FoodTable[[#This Row],[ΜΕΡΙΔΑ ΑΝΑ ΠΑΙΔΙ]]*ChildrenTotal)+(FoodTable[[#This Row],[ΜΕΡΙΔΑ ΑΝΑ ΕΝΗΛΙΚΑ]]*AdultTotal) -> 360 | G23: =IFERROR(FoodTable[[#This Row],[ΣΥΝΟΛΙΚΟ ΚΟΣΤΟΣ]]/FoodTable[[#This Row],[ΣΥΝΟΛΙΚΕΣ ΜΕΡΙΔΕΣ]],"") -> 0.04 € | H23: =IFERROR(FoodTable[[#This Row],[ΚΟΣΤΟΣ ΑΝΑ ΜΕΡΙΔΑ]]*FoodTable[[#This Row],[ΜΕΡΙΔΑ ΑΝΑ ΠΑΙΔΙ]],"") -> 0.21 € | I23: =IFERROR(FoodTable[[#This Row],[ΚΟΣΤΟΣ ΑΝΑ ΜΕΡΙΔΑ]]*FoodTable[[#This Row],[ΜΕΡΙΔΑ ΑΝΑ ΕΝΗΛΙΚΑ]],"") -> 0.42 € | J23: Διάφορα: τυρί κρέμα, πικάντικο τυρί με καρύδια
B24: Κρακεράκια | C24: 25.00 € | D24: 5 | E24: 10 | F24: =(FoodTable[[#This Row],[ΜΕΡΙΔΑ ΑΝΑ ΠΑΙΔΙ]]*ChildrenTotal)+(FoodTable[[#This Row],[ΜΕΡΙΔΑ ΑΝΑ ΕΝΗΛΙΚΑ]]*AdultTotal) -> 360 | G24: =IFERROR(FoodTable[[#This Row],[ΣΥΝΟΛΙΚΟ ΚΟΣΤΟΣ]]/FoodTable[[#This Row],[ΣΥΝΟΛΙΚΕΣ ΜΕΡΙΔΕΣ]],"") -> 0.07 € | H24: =IFERROR(FoodTable[[#This Row],[ΚΟΣΤΟΣ ΑΝΑ ΜΕΡΙΔΑ]]*FoodTable[[#This Row],[ΜΕΡΙΔΑ ΑΝΑ ΠΑΙΔΙ]],"") -> 0.35 € | I24: =IFERROR(FoodTable[[#This Row],[ΚΟΣΤΟΣ ΑΝΑ ΜΕΡΙΔΑ]]*FoodTable[[#This Row],[ΜΕΡΙΔΑ ΑΝΑ ΕΝΗΛΙΚΑ]],"") -> 0.69 € | J24: Διάφορα
B25: Σύνολο | C25: =SUBTOTAL(109,FoodTable[ΣΥΝΟΛΙΚΟ ΚΟΣΤΟΣ]) -> 475.00 € | D25: =SUBTOTAL(109,FoodTable[ΜΕΡΙΔΑ ΑΝΑ ΠΑΙΔΙ]) -> 34.5 | E25: =SUBTOTAL(109,FoodTable[ΜΕΡΙΔΑ ΑΝΑ ΕΝΗΛΙΚΑ]) -> 65.5 | F25: =SUBTOTAL(109,FoodTable[ΣΥΝΟΛΙΚΕΣ ΜΕΡΙΔΕΣ]) -> 2393 | G25: =SUBTOTAL(109,FoodTable[ΚΟΣΤΟΣ ΑΝΑ ΜΕΡΙΔΑ]) -> 6.92 € | H25: =SUBTOTAL(109,FoodTable[ΚΟΣΤΟΣ ΑΝΑ ΠΑΙΔΙ]) -> 7.25 € | I25: =SUBTOTAL(109,FoodTable[ΚΟΣΤΟΣ ΑΝΑ ΕΝΗΛΙΚΑ]) -> 12.69 €

Sheet Άλλα απαραίτητα
B3: Άλλα απαραίτητα
B6: Εξοπλισμός και προμήθειες | C6: Κόστος | D6: Αγοράστηκε | E6: Σημειώσεις
B7: Ενοικίαση χώρου/αίθουσας | C7: 250.00 € | D7: Ναι
B8: Τραπεζομάντηλα | C8: 30.00 € | D8: Ναι | E8: Ενοικίαση
B9: Τραπέζια και καρέκλες | C9: 0.00 € | E9: Περιλαμβάνεται στην ενοικίαση του χώρου
B10: Χαρτοπετσέτες αναψυκτικών | C10: 25.00 €
B11: Χαρτοπετσέτες δείπνου | C11: 20.00 € | E11: Ενοικίαση
B12: Σερβίρισμα τραπεζιών | C12: 50.00 € | E12: Ενοικίαση
B13: Γυαλικά | C13: 25.00 € | E13: Ενοικίαση
B14: Σύνολο | C14: =SUBTOTAL(109,Table1Budget[Κόστος]) -> 400.00 €
B17: Διακοσμητικά | C17: Κόστος | D17: Αγοράστηκε | E17: Σημειώσεις
B18: Μπαλόνια | C18: 25.00 €
B19: Φιάλη με ήλιο | C19: 50.00 € | E19: Ενοικίαση
B20: Διακοσμητικά τραπεζιού | C20: 100.00 € | D20: Ναι | E20: 10 συνολικά
B21: Γυάλινα βάζα | C21: 0.00 € | E21: Δανεικά από τη Μαρία
B22: Σύνολο | C22: =SUBTOTAL(109,Table2Budget[Κόστος]) -> 175.00 €
B25: Άλλο | C25: Κόστος | D25: Αγοράστηκε | E25: Σημειώσεις
B26: Προσκλήσεις | C26: 50.00 € | D26: Ναι
B27: Ταχυδρομικά | C27: 60.00 € | D27: Ναι
B28: Φωτογράφος | C28: 125.00 € | E28: 2 ώρες (2 μ.μ. - 4 μ.μ.)
B29: Αναμνηστικά από το πάρτι | C29: 50.00 €
B30: Σύνολο | C30: =SUBTOTAL(109,Table3Budget[Κόστος]) -> 285.00 €

Sheet Διάταξη θέσεων
A1: Διάταξη θέσεων
AH35: *1 τετράγωνο= περίπου 30x30 εκατοστά
A36: Σημειώσεις | T36: =" Σύνολο καλεσμένων που επιβεβαίωσαν: "&ConfirmedGuests -> Σύνολο καλεσμένων που επιβεβαίωσαν: 46
T37: Μπορείτε να χρησιμοποιήσετε οποιαδήποτε από τις παρακάτω διατάξεις τραπεζιών:
U38: =ROUNDUP(ConfirmedGuests/6,0)&" ροτόντες διαμέτρου 120 εκατοστών (6 θέσεις)" -> 8 ροτόντες διαμέτρου 120 εκατοστών (6 θέσεις)
U39: =ROUNDUP(ConfirmedGuests/8,0) &"ροτόντες διαμέτρου 150 εκατοστών (8 θέσεις)" -> 6ροτόντες διαμέτρου 150 εκατοστών (8 θέσεις)
U40: =ROUNDUP(ConfirmedGuests/10,0)&" ροτόντες διαμέτρου 170 εκατοστών (10 θέσεις)" -> 5 ροτόντες διαμέτρου 170 εκατοστών (10 θέσεις)
U41: =ROUNDUP(ConfirmedGuests/6,0)& " ορθογώνια τραπέζια 70 x 150 εκατοστά (6 θέσεις)" -> 8 ορθογώνια τραπέζια 70 x 150 εκατοστά (6 θέσεις)
U42: =ROUNDUP(ConfirmedGuests/8,0)&" ορθογώνια τραπέζια 70 x 200 εκατοστά (8 θέσεις)" -> 6 ορθογώνια τραπέζια 70 x 200 εκατοστά (8 θέσεις)
T43: (Επιθυμητή απόσταση μεταξύ των τραπεζιών: 1 μέτρο)
